[Event "37th ECCC 2022"]
[Site "Mayrhofen"]
[Date "2022.10.04"]
[Round "2.39"]
[White "Hansen, Eric"]
[Black "Halvax, Georg"]
[Result "1-0"]
[ECO "B31"]
[WhiteElo "2613"]
[BlackElo "2432"]
[Annotator "TA"]
[PlyCount "131"]
[EventDate "2022.10.03"]
[EventType "team-tourn"]
[EventCountry "AUT"]
[SourceTitle "playchess.com"]
[Source "ChessBase"]
[SourceQuality "1"]
[TimeControl "40/5400+30:1800+30"]

{[%evp 15,131,0,0,3,0,-11,-13,0,28,-7,0,-6,0,-15,0,-18,-6,-18,0,-37,0,0,0,0,0,-35,-38,-85,-92,-76,-77,-95,-88,-133,-105,-105,-106,-222,-77,-100,-105,-78,-68,-85,-93,-154,-142,-381,-387,-339,-173,-166,-170,-169,-172,-155,-162,-152,-156,36,221,221,221,221,221,221,390,422,416,385,341,336,458,357,337,346,332,280,760,742,742,545,742,768,787,0,627,521,521,521,627,590,5871,5812,29961,4312,29956,29959,29960,29962,29962,29963,29959,29954,29970,29971,29972,29973,29973,29973,29972,29965,12355,1775,629,458,29983,29984]} 1. e4 {[%emt 0:00:10]} c5 {[%emt 0:00:12]} 2. Nf3 {[%emt 0:00:21]} Nc6 {[%emt 0:00:18]} 3. Bb5 {[%emt 0:01:23]} g6 {[%emt 0:00:17]} 4. O-O {[%emt 0:01:38]} Bg7 {[%emt 0:00:21]} 5. c3 {[%emt 0:01:27]} Nf6 {[%emt 0:00:22]} 6. Re1 {[%emt 0:00:19]} O-O {[%emt 0:00:27]} 7. d4 {[%emt 0:10:38]} d5 {[%emt 0:00:20] is currently scoring better than 7...cxd4.} 8. exd5 {[%emt 0:05:22]} Qxd5 {[%emt 0:00:14]} 9. dxc5 {[%emt 0:00:49] B31: Sicilian: 2...Nc6 3 Bb5 g6.} Qxc5 {[%emt 0:07:15]} 10. Na3 {[%emt 0:00:35]} Bg4 {[%emt 0:12:39]} (10... Rd8 $5 {[%cal Rd8d1]} 11. Be3 Qh5 $11) 11. h3 {[%emt 0:01:39] Strongly threatening Bxc6. The position is equal.} Rad8 {[%emt 0:01:55]} 12. Qe2 {[%emt 0:03:31]} Bxf3 {[%emt 0:00:25]} 13. Qxf3 {[%emt 0:00:07]} Nd5 {[%emt 0:01:20] [#]} 14. Re4 $146 {[%emt 0:13:25]} ({Predecessor:} 14. Bf1 Nxc3 15. bxc3 Bxc3 16. Nc2 Bxe1 17. Nxe1 Qe5 18. Nc2 Nb4 19. Bf4 Qf6 20. Rc1 Nxa2 {1-0 (32) Jakubowski,T (2220)-Bystrov,S (2320) Polanica Zdroj 1998}) 14... e5 {[%emt 0:06:12]} 15. Rc4 {[%emt 0:03:55]} Qd6 {[%emt 0:05:32]} 16. Bg5 {[%emt 0:13:08]} Nce7 {[%emt 0:07:16] aiming for ...a6.} 17. Ba4 {[%emt 0:30:24]} (17. Rd1 $5 {[%cal Rg5e7]}) 17... a6 {[%emt 0:30:15] Threatens to win with ...b5.} 18. Bb3 {[%emt 0:00:07]} h6 {[%emt 0:02:29]} 19. Bxe7 {[%emt 0:01:24]} Qxe7 {[%emt 0:00:50]} 20. Rd1 {[%emt 0:00:59]} Nf4 {[%emt 0:02:08]} 21. Re4 {[%emt 0:02:32]} (21. Rxd8 $15 {was preferrable.} Rxd8 22. Re4) 21... Rxd1+ $17 {[%emt 0:01:12]} 22. Qxd1 {[%emt 0:00:22]} Kh7 {[%emt 0:02:27]} 23. Qf3 {[%emt 0:00:49]} Qc7 {[%emt 0:03:14]} 24. h4 {[%emt 0:01:04]} f5 {[%emt 0:02:19]} 25. Rc4 {[%emt 0:00:14]} Qd7 {[%emt 0:00:58]} 26. Bc2 {[%emt 0:04:34]} (26. Nc2 $17 {might work better.}) 26... Ne6 {[%emt 0:05:40]} (26... b5 $19 {is more deadly.} 27. Rc5 Rd8) 27. h5 {[%emt 0:01:50]} e4 {[%emt 0:01:04]} 28. Qd1 {[%emt 0:00:01]} Qxd1+ {[%emt 0:01:46]} 29. Bxd1 {[%emt 0:00:05]} Rd8 $1 {[%emt 0:00:36]} 30. Bb3 {[%emt 0:01:32]} (30. Bc2 $142) 30... gxh5 {[%emt 0:01:06]} 31. Nc2 $2 {[%emt 0:00:34]} (31. Kf1 $17 {was necessary.}) 31... Rd1+ $19 {[%emt 0:00:53]} 32. Kh2 {[%emt 0:00:01][%cal Oc2d4]} Rd2 {[%emt 0:00:12] Against Nd4} (32... Be5+ $142 33. g3 h4) 33. Ne3 {[%emt 0:00:29]} Rxf2 {[%emt 0:01:20]} 34. Kg1 {[%emt 0:00:33]} Rxb2 {[%emt 0:01:02] And now ...Kg6 would win.} 35. Nxf5 {[%emt 0:00:02]} Bf6 $1 {[%emt 0:00:36]} 36. Rb4 {[%emt 0:01:23]} Bxc3 {[%emt 0:00:38]} 37. Rb6 {[%emt 0:00:44]} (37. Rxe4 $17 Nc5 38. Re3 Nxb3 39. Rxc3) 37... Bd4+ $2 {[%emt 0:02:34] White stays focused until the end.} (37... Rb1+ $1 $14 38. Kf2 Rb2+ 39. Kg1 Rb1+ 40. Kh2 Be5+ 41. g3 Rb2+ 42. Kh1 Kg6 43. Nxh6 (43. Ne7+ Kf7 $11) 43... Bxg3 44. Rxe6+ Kg5) 38. Nxd4 $18 {[%emt 0:00:16]} Nxd4 {[%emt 0:00:02] [#]} 39. Bg8+ $1 {[%emt 0:00:39][%mdl 576] Discovered Attack} Kxg8 {[%emt 0:00:01]} 40. Rxb2 {[%emt 0:00:06][%mdl 4096] Endgame KR-KN} b5 {[%emt 0:00:59]} (40... Nb5 41. a4 Nc3 42. Rxb7 Nxa4) 41. Rd2 {[%emt 0:30:30]} ({Weaker is} 41. Rb4 Ne2+ 42. Kf2 Nc3 $16) 41... Nf5 {[%emt 0:03:08]} 42. Rd5 {[%emt 0:00:00]} Ne3 {[%emt 0:01:29]} 43. Rd6 {[%emt 0:00:00]} a5 {[%emt 0:00:41]} 44. Rb6 {[%emt 0:00:00]} b4 {[%emt 0:00:36] [#]} 45. Rb5 $1 {[%emt 0:00:00]} ({Less strong is} 45. Rxh6 a4 $16) 45... Nd1 {[%emt 0:05:46]} 46. Rxa5 {[%emt 0:00:00]} e3 $2 {[%emt 0:00:09]} (46... Nc3 47. Ra7 h4) 47. Kf1 {[%emt 0:00:00] Hoping for Ke2.} Nc3 {[%emt 0:00:25]} 48. Ra7 {[%emt 0:00:00]} h4 {[%emt 0:00:34]} 49. Ke1 {[%emt 0:00:00]} Kh8 {[%emt 0:05:57]} 50. Kf1 {[%emt 0:00:00]} Kg8 {[%emt 0:00:24]} 51. a3 {[%emt 0:04:39]} bxa3 {[%emt 0:01:12]} 52. Rxa3 {[%emt 0:00:02]} Nd5 {[%emt 0:02:03]} 53. Ra4 {[%emt 0:00:49]} e2+ {[%emt 0:00:09]} 54. Kf2 {[%emt 0:00:15] White threatens Rd4 and mate.} Ne3 {[%emt 0:00:02]} 55. Re4 {[%emt 0:00:33]} (55. Kxe2 $142 Nd5 56. Rxh4 Kg7 57. Kf3 Kg6 58. Ra4 Nf6 59. Ra6 Kg7 60. Ra5) 55... Nf5 {[%emt 0:01:33]} 56. Rf4 {[%emt 0:01:50]} Ne7 {[%emt 0:01:37]} 57. Rxh4 {[%emt 0:00:17]} Kg7 {[%emt 0:00:13]} 58. Kxe2 {[%emt 0:00:15]} Kg6 {[%emt 0:00:11]} 59. Kf3 {[%emt 0:00:27]} h5 {[%emt 0:01:28]} 60. Ra4 {[%emt 0:00:16]} Kh6 {[%emt 0:00:09]} 61. Ra5 {[%emt 0:01:18]} Ng6 {[%emt 0:00:58]} 62. Ke4 {[%emt 0:00:10]} Ne7 {[%emt 0:00:39]} 63. Rb5 {[%emt 0:00:46]} Ng6 {[%emt 0:00:24]} 64. Rf5 {[%emt 0:00:39]} (64. Rd5 $142 h4 65. Rb5) 64... Nh4 {[%emt 0:00:23]} 65. Rf1 {[%emt 0:00:31] Black must now prevent g3.} Nxg2 {[%emt 0:00:25] [#]} (65... Ng6 $18 66. Rf6 Kg5) 66. Rh1 $1 {[%emt 0:00:12] Weighted Error Value: White=0.35/Black=0.49} 1-0

[Event "37th ECCC 2022"]
[Site "Mayrhofen"]
[Date "2022.10.04"]
[Round "2.40"]
[White "Michalczak, Thomas"]
[Black "Christiansen, Johan-Sebastian"]
[Result "0-1"]
[ECO "C11"]
[WhiteElo "2254"]
[BlackElo "2576"]
[Annotator "TA"]
[PlyCount "42"]
[EventDate "2022.10.03"]
[EventType "team-tourn"]
[EventCountry "AUT"]
[SourceTitle "playchess.com"]
[Source "ChessBase"]
[SourceQuality "1"]
[TimeControl "40/5400+30:1800+30"]

{[%evp 13,42,0,3,0,15,11,20,-7,0,-3,34,0,28,-58,-59,-293,-303,-331,-291,-278,-278,-748,-741,-727,-725,-1174,-1174,-1159,-1133,-1072,-1058]} 1. e4 {[%emt 0:00:04]} e6 {[%emt 0:00:19]} 2. d4 {[%emt 0:00:12]} d5 {[%emt 0:00:04]} 3. Nc3 {[%emt 0:00:04]} Nf6 {[%emt 0:00:03]} 4. e5 {[%emt 0:00:06]} Nfd7 {[%emt 0:00:05]} 5. f4 {[%emt 0:00:14]} c5 {[%emt 0:00:03]} 6. Nf3 {[%emt 0:00:04]} Nc6 {[%emt 0:00:14]} 7. Be3 {[%emt 0:00:06]} Be7 {[%emt 0:01:54]} 8. a3 {[%emt 0:00:09] C11: French: Classical System: 4 e5 and 4 Bg5 dxe4.} O-O {[%emt 0:06:03]} 9. dxc5 {[%emt 0:05:08]} Nxc5 {[%emt 0:00:09]} 10. b4 {[%emt 0:00:56] The position is equal.} Nd7 {[%emt 0:00:02]} 11. Bd3 {[%emt 0:06:59]} a6 {[%emt 0:05:01] [#]} 12. h4 $146 {[%emt 0:05:48][%cal Od3h7] [#] aiming for Bxh7+!} ({Predecessor:} 12. O-O f6 13. Nd4 Ndb8 14. Qh5 f5 15. Nce2 Nxd4 16. Nxd4 Nc6 17. g4 Nxd4 18. Bxd4 {1-0 (34) Eljanov,P (2720)-David,A (2569) Antalya 2017}) 12... f5 {[%emt 0:18:58][%cal Od7e5]} 13. g4 {[%emt 0:03:11]} (13. Ne2 $11) 13... d4 {[%emt 0:11:49][%cal Bd5d4,Bd4e3][%mdl 32]} (13... Ndxe5 $5 14. Nxe5 d4 15. Nxc6 bxc6 $15) 14. gxf5 $2 {[%emt 0:15:01] White does not recover from this.} (14. Nxd4 $15 Ndxe5 15. fxe5 Nxd4 16. O-O) 14... dxe3 $19 {[%emt 0:15:56]} 15. Ng5 {[%emt 0:14:23] [#]} Ndxe5 $1 {[%emt 0:03:57]} 16. fxe5 {[%emt 0:01:53]} Nxe5 {[%emt 0:06:45] The board is on fire.} 17. Qh5 $2 {[%emt 0:09:34]} (17. fxe6 Bxg5 18. hxg5 Nf3+ 19. Ke2 Nxg5 20. Be4 Bxe6 21. Qxd8 Raxd8 22. Rag1 Nxe4 23. Nxe4) 17... Nxd3+ {[%emt 0:01:01] Black is clearly winning.} 18. cxd3 {[%emt 0:00:07]} h6 {[%emt 0:00:25]} 19. Qg6 {[%emt 0:04:02]} Bxg5 {[%emt 0:00:47]} 20. hxg5 {[%emt 0:00:06]} Qxd3 {[%emt 0:00:34] ( -> ...Qd2+)} 21. Ne4 {[%emt 0:00:11] Against Qd2+} Qxe4 {[%emt 0:01:12] Weighted Error Value: White=1.33/Black=0.07 (flawless)} 0-1

[Event "37th ECCC 2022"]
[Site "Mayrhofen"]
[Date "2022.10.04"]
[Round "2.41"]
[White "Urkedal, Frode Olav Olsen"]
[Black "Berg, Michael"]
[Result "1-0"]
[ECO "A57"]
[WhiteElo "2523"]
[BlackElo "2313"]
[Annotator "TA"]
[PlyCount "49"]
[EventDate "2022.10.03"]
[EventType "team-tourn"]
[EventCountry "AUT"]
[SourceTitle "playchess.com"]
[Source "ChessBase"]
[SourceQuality "1"]
[TimeControl "40/5400+30:1800+30"]

{[%evp 15,49,28,45,28,84,83,77,85,83,82,74,81,154,142,157,153,300,302,404,390,506,506,617,560,706,713,720,840,781,758,870,875,1205,711,875,844]} 1. d4 {[%emt 0:00:04]} Nf6 {[%emt 0:00:07]} 2. c4 {[%emt 0:00:05]} c5 {[%emt 0:00:08]} 3. d5 {[%emt 0:00:05]} b5 {[%emt 0:00:06]} 4. cxb5 {[%emt 0:00:06]} a6 {[%emt 0:00:08]} 5. e3 {[%emt 0:00:06]} axb5 {[%emt 0:00:22]} 6. Bxb5 {[%emt 0:00:08]} Qa5+ {[%emt 0:00:15]} 7. Nc3 {[%emt 0:00:08]} Bb7 {[%emt 0:00:14]} 8. Bd2 {[%emt 0:00:13]} Qb6 {[%emt 0:00:15]} 9. a4 {[%emt 0:00:08] aiming for e4. A57: Benko/Volga Gambit.} e6 {[%emt 0:04:44]} (9... Nxd5 $11 {remains equal.} 10. Nf3 e6) 10. e4 $1 $16 {[%emt 0:05:03]} exd5 {[%emt 0:02:07]} 11. exd5 {[%emt 0:00:08] White is better.} Nxd5 {[%emt 0:00:29]} 12. Nf3 {[%emt 0:13:30]} ({But not} 12. Kf1 Be7 $11) 12... Qe6+ {[%emt 0:09:38] [#]} 13. Ne2 $146 {[%emt 0:00:29] 0-0 is the strong threat.} ({Predecessor:} 13. Qe2 Be7 14. Nxd5 Bxd5 15. Bc3 O-O 16. O-O Qxe2 17. Bxe2 Be6 18. Bb5 d5 19. Rfd1 {½-½ (69) Jimenez Ruano,A (2240)-Martin Fuentes,A (2402) Linares 2021}) 13... Nc7 {[%emt 0:03:46] [#]} (13... Bd6 $142) 14. Ra3 $1 {[%emt 0:00:01]} Be7 {[%emt 0:10:03]} 15. Re3 {[%emt 0:05:27]} Qg4 {[%emt 0:16:54]} (15... Qb6 $16) 16. Ng3 $18 {[%emt 0:25:22] Hoping for 0-0.} Nxb5 {[%emt 0:15:05]} 17. axb5 {[%emt 0:02:17]} Bxf3 {[%emt 0:02:10]} 18. gxf3 {[%emt 0:00:06] White is clearly winning.} ({Stronger than} 18. Qxf3 Ra1+ 19. Ke2 Qc4+ 20. Rd3 Rxh1 21. Nxh1 Qxb5 $17) 18... Qg6 {[%emt 0:00:54]} 19. O-O {[%emt 0:01:00]} d5 {[%emt 0:06:56]} 20. Rfe1 {[%emt 0:01:26]} Ra7 {[%emt 0:01:08]} 21. Qe2 {[%emt 0:00:06][%cal Re3e7]} O-O {[%emt 0:05:31]} 22. Rxe7 {[%emt 0:00:40]} Rxe7 {[%emt 0:00:12]} 23. Qxe7 {[%emt 0:00:05]} Qd3 {[%emt 0:00:48]} 24. Qe2 {[%emt 0:04:53]} Qb3 {[%emt 0:00:57]} 25. Bf4 {[%emt 0:03:55] Black did not feel at home in the position after the opening.  Weighted Error Value: White=0.11 (very precise) /Black=0.65} 1-0

[Event "37th ECCC 2022"]
[Site "Mayrhofen"]
[Date "2022.10.04"]
[Round "2.42"]
[White "Wickenfeld, Stefan"]
[Black "Ranaldi, Lucas"]
[Result "1/2-1/2"]
[ECO "B19"]
[WhiteElo "2173"]
[BlackElo "2369"]
[Annotator "TA"]
[PlyCount "87"]
[EventDate "2022.10.03"]
[EventType "team-tourn"]
[EventCountry "AUT"]
[SourceTitle "playchess.com"]
[Source "ChessBase"]
[SourceQuality "1"]
[TimeControl "40/5400+30:1800+30"]

{[%evp 24,87,19,0,0,0,0,0,0,-41,-35,-38,-47,-39,-30,-54,-43,-51,-56,-58,-50,-91,-58,-41,-49,-45,-53,-137,-153,-207,-208,-211,-205,-187,0,0,0,0,-11,-29,-73,-56,-23,-35,-19,-31,-31,-50,-30,-35,18,0,13,13,8,8,19,0,0,0,0,0,0,0,0,0]} 1. e4 {[%emt 0:00:02]} c6 {[%emt 0:00:12]} 2. d4 {[%emt 0:00:05]} d5 {[%emt 0:00:05]} 3. Nc3 {[%emt 0:00:06]} dxe4 {[%emt 0:00:07]} 4. Nxe4 {[%emt 0:00:07]} Bf5 {[%emt 0:00:19]} 5. Ng3 {[%emt 0:00:06]} Bg6 {[%emt 0:00:07]} 6. h4 {[%emt 0:00:05][%cal Bh2h4,Bh4h5][%mdl 32]} h6 {[%emt 0:00:08]} 7. Nf3 {[%emt 0:00:06]} Nd7 {[%emt 0:00:08]} 8. h5 {[%emt 0:00:05]} Bh7 {[%emt 0:00:06]} 9. Bd3 {[%emt 0:00:06]} Bxd3 {[%emt 0:00:43]} 10. Qxd3 {[%emt 0:00:05]} e6 {[%emt 0:00:28]} 11. Bd2 {[%emt 0:00:08]} Ngf6 {[%emt 0:00:56]} 12. O-O-O {[%emt 0:00:44]} Be7 {[%emt 0:00:19]} 13. Kb1 {[%emt 0:05:46]} Qb6 {[%emt 0:00:44] B19: Classical Caro-Kann: 4...Bf5 main line.} 14. Ne4 {[%emt 0:01:34]} Rd8 {[%emt 0:01:27]} 15. c4 {[%emt 0:06:16] is now debated instead of 15.Nxf6+.} O-O {[%emt 0:09:26]} 16. Bc3 {[%emt 0:02:50]} c5 {[%emt 0:22:22]} 17. Qe2 {[%emt 0:07:54]} Nxe4 {[%emt 0:10:34]} 18. Qxe4 {[%emt 0:00:14]} Bf6 {[%emt 0:00:51]} 19. Qe3 {[%emt 0:09:17] [#]} Qa6 $146 {[%emt 0:19:03]} ({Predecessor:} 19... cxd4 20. Bxd4 Bxd4 21. Rxd4 e5 22. Rd5 e4 23. Rhd1 Qc7 24. Qd4 exf3 25. gxf3 Qc6 26. b3 a5 {0-1 (45) Barbosa,E (2501)-Kobalia,M (2609) Caleta 2020}) 20. g4 {[%emt 0:12:20]} cxd4 $1 {[%emt 0:03:40]} 21. Bxd4 {[%emt 0:06:58]} ({But not} 21. Rxd4 $2 Bxd4 22. Qxd4 f6 $19) 21... e5 $1 {[%emt 0:02:17]} ({Don't play} 21... Qxc4 22. g5 e5 23. gxf6 exd4 24. Rxd4 $14) 22. Bc3 {[%emt 0:07:46]} e4 {[%emt 0:01:04]} 23. Nd2 $1 {[%emt 0:01:43]} Bxc3 {[%emt 0:02:04]} 24. Qxc3 {[%emt 0:00:08]} Nc5 {[%emt 0:05:14]} 25. g5 {[%emt 0:08:03]} (25. Qe3 $1 $15 Qc6 26. Nb3) 25... hxg5 $17 {[%emt 0:03:48]} 26. Qe5 {[%emt 0:04:37]} (26. Qe3 $17 Qb6 27. Nxe4 Nxe4 28. Qxe4) 26... Nd3 $19 {[%emt 0:13:25][%csl LRe5,LRf2]} 27. Qxg5 {[%emt 0:00:06] [#] White wants to mate with Rdg1.} Qb6 {[%emt 0:00:35][%csl Gd3][%cal Rb6b2]} 28. Nb3 {[%emt 0:00:40] Hoping for Rdg1.} Qf6 $2 {[%emt 0:01:51]} (28... Qxf2 $19 {[%csl Gd3][%cal Rf2b2]} 29. Rd2 Qf4 30. Qxf4 Nxf4) 29. Qxf6 $11 {[%emt 0:00:31]} gxf6 {[%emt 0:00:01][%cal Bg7f6,Bf6f5,Bf5e4][%mdl 32]} 30. Rd2 {[%emt 0:07:19]} Kh7 {[%emt 0:00:29]} 31. a3 {[%emt 0:05:24]} f5 {[%emt 0:00:44]} 32. Rhd1 {[%emt 0:01:46]} Rde8 {[%emt 0:01:21]} 33. Nd4 {[%emt 0:01:59]} Re5 {[%emt 0:00:51]} 34. f3 {[%emt 0:01:57]} Nf4 {[%emt 0:00:18] And now ...e3 would win.} 35. fxe4 {[%emt 0:01:14]} fxe4 {[%emt 0:00:08]} 36. Rf2 $1 {[%emt 0:00:28]} Nh3 {[%emt 0:02:02]} (36... Nxh5 $15 37. Rh1 f6) 37. Rf6 {[%emt 0:00:53] The position is equal.} Rxh5 {[%emt 0:00:23]} 38. Ne6 {[%emt 0:00:20][%mdl 64] [#] Deflection} Re8 {[%emt 0:00:32]} 39. Rd7 {[%emt 0:02:09]} Kg8 {[%emt 0:00:33]} 40. Rdxf7 {[%emt 0:01:01]} Rxe6 $1 {[%emt 0:00:32]} 41. Rf8+ {[%emt 0:30:16]} Kg7 {[%emt 0:30:09]} 42. R8f7+ {[%emt 0:00:07]} Kg8 {[%emt 0:00:00]} 43. Rf8+ {[%emt 0:00:00]} Kg7 {[%emt 0:00:00]} 44. R8f7+ {[%emt 0:00:00] Weighted Error Value: White=0.14 (very precise) /Black=0.13 (very precise)} 1/2-1/2

[Event "37th ECCC 2022"]
[Site "Mayrhofen"]
[Date "2022.10.04"]
[Round "2.43"]
[White "Shengelia, David"]
[Black "Korobov, Anton"]
[Result "1/2-1/2"]
[ECO "E17"]
[WhiteElo "2460"]
[BlackElo "2672"]
[Annotator "TA"]
[PlyCount "120"]
[EventDate "2022.10.03"]
[EventType "team-tourn"]
[EventCountry "AUT"]
[SourceTitle "playchess.com"]
[Source "ChessBase"]
[SourceQuality "1"]
[TimeControl "40/5400+30:1800+30"]

{[%evp 13,120,19,19,11,6,8,27,12,11,11,11,18,41,37,43,13,20,18,26,22,38,33,47,37,66,77,68,65,83,83,85,61,84,78,77,71,115,116,124,126,163,147,275,270,241,148,148,142,129,125,125,125,125,58,58,82,73,28,40,22,31,12,13,7,7,0,0,0,0,0,0,0,8,8,8,8,8,14,920,601,29964,29967,29964,29968,29968,29967,29972,0,0,0,0,0,0,0,0,0,0,19,0,0,0,70,0,0,0,0,0,0,0]} 1. d4 {[%emt 0:00:04]} Nf6 {[%emt 0:00:05]} 2. c4 {[%emt 0:00:19]} e6 {[%emt 0:00:06]} 3. Nf3 {[%emt 0:00:09]} b6 {[%emt 0:00:19]} 4. g3 {[%emt 0:00:53]} Bb7 {[%emt 0:00:40]} 5. Bg2 {[%emt 0:00:11]} Be7 {[%emt 0:00:06]} 6. O-O {[%emt 0:00:08]} O-O {[%emt 0:00:04]} 7. Re1 {[%emt 0:00:15]} Na6 {[%emt 0:01:26]} 8. a3 {[%emt 0:00:21] E17: Queen's Indian: 4 g3 Bb7 5 Bg2 Be7.} d5 {[%emt 0:08:07]} 9. cxd5 {[%emt 0:01:04]} exd5 {[%emt 0:04:17]} 10. Nc3 {[%emt 0:00:07] White has an edge.} Ne4 {[%emt 0:01:26] [#]} 11. h4 $146 {[%emt 0:11:33]} ({Predecessor:} 11. Bd2 c5 12. Rc1 Bf6 13. Be3 Re8 14. Qc2 Qe7 15. Red1 Nxc3 16. Qxc3 Rac8 17. Qd2 {½-½ (40) Bellahcene,B (2436)-Tiviakov,S (2661) Algiers 2015}) 11... c5 {[%emt 0:03:06]} 12. Bf4 {[%emt 0:06:09]} Nxc3 {[%emt 0:05:07]} 13. bxc3 {[%emt 0:01:26]} Nc7 {[%emt 0:00:14]} 14. dxc5 {[%emt 0:20:31]} Bxc5 {[%emt 0:06:20]} 15. Nd4 Qd7 16. e3 {[%emt 0:09:14]} Rad8 {[%emt 0:02:49]} 17. a4 {[%emt 0:03:06]} Ne8 {[%emt 0:07:17]} 18. Nb3 {[%emt 0:11:22]} Nf6 {[%emt 0:03:31]} 19. Nxc5 {[%emt 0:02:28]} bxc5 {[%emt 0:04:16]} 20. Bg5 {[%emt 0:00:04]} Qe7 {[%emt 0:07:59]} 21. Qb3 {[%emt 0:00:50]} Ba8 {[%emt 0:11:17]} 22. Qb5 {[%emt 0:19:23]} Rc8 {[%emt 0:05:19]} 23. Rad1 {[%emt 0:00:07]} Rfd8 {[%emt 0:02:13]} 24. Qa6 {[%emt 0:07:28][%cal Og2d5] White is much more active.} Rc6 {[%emt 0:04:28]} 25. Qa5 {[%emt 0:00:03][%cal Oe3e4] aiming for e4!} h6 {[%emt 0:09:06]} 26. Bxf6 {[%emt 0:00:04]} Rxf6 {[%emt 0:00:18]} 27. c4 $1 {[%emt 0:00:13][%cal Rc4d5]} Rfd6 {[%emt 0:05:33]} (27... Bb7 $16 {is a better defense.} 28. cxd5 (28. Bxd5 Rd7 $16) 28... Ra6) 28. Qxc5 $18 {[%emt 0:00:53]} Qd7 {[%emt 0:00:04]} 29. cxd5 {[%emt 0:01:35]} Bxd5 {[%emt 0:00:13]} 30. Bxd5 {[%emt 0:01:04]} Rxd5 {[%emt 0:00:09]} 31. Rxd5 {[%emt 0:00:07]} Qxd5 {[%emt 0:00:05]} 32. Qxa7 {[%emt 0:02:35][%mdl 4096] Endgame Qc7 is the strong threat. KQR-KQR} Ra8 {[%emt 0:00:35]} 33. Qd4 {[%emt 0:01:18]} ({White should play} 33. Qe7 $16) 33... Qxd4 $14 {[%emt 0:00:34]} 34. exd4 {[%emt 0:00:03] Black must now prevent Ra1.} Rxa4 {[%emt 0:00:05] KR-KR} 35. Re8+ {[%emt 0:00:48]} Kh7 {[%emt 0:02:21]} 36. Re4 {[%emt 0:00:08]} g5 {[%emt 0:03:15]} 37. h5 {[%emt 0:00:31]} Kg7 {[%emt 0:00:36]} 38. Kg2 {[%emt 0:01:08] next g4 is good for White.} f5 {[%emt 0:00:42]} 39. Re7+ {[%emt 0:00:32]} Kf6 {[%emt 0:00:20]} 40. Rh7 {[%emt 0:01:18]} g4 {[%emt 0:01:04]} 41. d5 {[%emt 0:07:05]} Kg5 {[%emt 0:07:22]} 42. d6 {[%emt 0:05:26]} f4 {[%emt 0:03:05]} 43. gxf4+ {[%emt 0:01:32]} Rxf4 {[%emt 0:00:05]} 44. d7 {[%emt 0:01:03]} Rd4 {[%emt 0:00:08]} 45. Rg7+ {[%emt 0:01:17]} Kxh5 $2 {[%emt 0:01:27][%mdl 8192]} (45... Kf6 $11 46. Rh7 Kg5) 46. f3 {[%emt 0:10:11]} Rd2+ {[%emt 0:03:33]} 47. Kg3 {[%emt 0:00:04][%csl Gg3,Gg7][%cal Rf3g4]} gxf3 {[%emt 0:00:05]} 48. Kxf3 {[%emt 0:00:06]} Kh4 {[%emt 0:00:25]} 49. Kf4 {[%emt 0:01:19]} h5 {[%emt 0:00:20]} 50. Ke5 $2 {[%emt 0:02:40]} (50. Ke4 {mates} Rd1 51. Rf7 Re1+ 52. Kf3 Rd1 53. Kf4 Kh3 54. Ke3 Rd6 55. Rf3+ Kh2 56. Rf2+ Kh3 57. Rd2) 50... Kh3 $1 $11 {[%emt 0:02:29]} 51. Ke6 {[%emt 0:00:04]} Re2+ $1 {[%emt 0:02:14]} 52. Kf7 {[%emt 0:00:28]} Rd2 {[%emt 0:03:49]} 53. Ke8 {[%emt 0:01:09]} h4 {[%emt 0:00:46][%cal Bh5h4,Bh4h3,Bh3h2][%mdl 32]} 54. d8=Q {[%emt 0:00:22]} Rxd8+ {[%emt 0:00:04]} 55. Kxd8 {[%emt 0:00:06] [#] Threatening mate with Kd7. KR-KP} Kh2 {[%emt 0:00:03]} 56. Ke7 {[%emt 0:00:08] Intending Ke6 and mate.} h3 {[%emt 0:00:05]} 57. Kf6 {[%emt 0:00:05] White threatens Kf5 and mate.} Kh1 {[%emt 0:00:06]} 58. Kf5 {[%emt 0:00:44] Kf4 would kill now. The position is equal.} h2 {[%emt 0:00:09]} 59. Kg4 {[%emt 0:00:25] [#] White wants to mate with Ra7.} Kg2 {[%emt 0:00:05]} 60. Kf4+ {[%emt 0:00:11]} Kf2 {[%emt 0:00:16] Blacks defense is rewarded with a draw.  Weighted Error Value: White=0.24 (precise) /Black=0.26 (precise)} 1/2-1/2